[Event "Titled Tuesday Blitz February 15 Early 2022"]
[White "Ter-Sahakyan, Samvel"]
[Black "Borisova, Ekaterina"]
[WhiteFideId "13302531"]
[BlackFideId "34124184"]
[WhiteElo "2592"]
[BlackElo "2034"]
[Result "1/2-1/2"]
[Round "10"]
[TimeControl "180+1"]
[Date "2022.02.15"]
[WhiteClock "0:00:04"]
[BlackClock "0:00:06"]

1. d4 {[%clk 0:03:00]}  Nf6 {[%clk 0:02:59]} 2. Bg5 {[%clk 0:02:58]}  e6 {[%clk 0:02:56]} 3. e4 {[%clk 0:02:58]}  h6 {[%clk 0:02:55]} 4. Bxf6 {[%clk 0:02:58]}  Qxf6 {[%clk 0:02:56]} 5. Nc3 {[%clk 0:02:58]}  Bb4 {[%clk 0:02:53]} 6. Qd3 {[%clk 0:02:56]}  b6 {[%clk 0:02:50]} 7. O-O-O {[%clk 0:02:55]}  Ba6 {[%clk 0:02:48]} 8. Qe3 {[%clk 0:02:48]}  Bxf1 {[%clk 0:02:46]} 9. Rxf1 {[%clk 0:02:48]}  Bxc3 {[%clk 0:02:44]} 10. Qxc3 {[%clk 0:02:46]}  c5 {[%clk 0:02:24]} 11. Nf3 {[%clk 0:02:35]}  cxd4 {[%clk 0:02:23]} 12. Qc8+ {[%clk 0:02:27]}  Qd8 {[%clk 0:02:20]} 13. Qxd8+ {[%clk 0:02:26]}  Kxd8 {[%clk 0:02:20]} 14. Nxd4 {[%clk 0:02:27]}  a6 {[%clk 0:02:16]} 15. Rd1 {[%clk 0:02:16]}  Ke7 {[%clk 0:02:13]} 16. Rd3 {[%clk 0:02:15]}  Nc6 {[%clk 0:02:12]} 17. Rhd1 {[%clk 0:02:09]}  Nxd4 {[%clk 0:01:57]} 18. Rxd4 {[%clk 0:02:09]}  Ra7 {[%clk 0:01:53]} 19. b3 {[%clk 0:01:56]}  Rc8 {[%clk 0:01:51]} 20. Kb2 {[%clk 0:01:55]}  Rc6 {[%clk 0:01:36]} 21. c4 {[%clk 0:01:52]}  d6 {[%clk 0:01:29]} 22. a4 {[%clk 0:01:50]}  Rb7 {[%clk 0:01:26]} 23. h4 {[%clk 0:01:49]}  b5 {[%clk 0:01:22]} 24. cxb5 {[%clk 0:01:48]}  axb5 {[%clk 0:01:23]} 25. a5 {[%clk 0:01:46]}  b4 {[%clk 0:01:13]} 26. Ra1 {[%clk 0:01:40]}  Ra6 {[%clk 0:01:13]} 27. Ra4 {[%clk 0:01:39]}  Rb5 {[%clk 0:01:12]} 28. Rdxb4 {[%clk 0:01:36]}  Rxb4 {[%clk 0:00:59]} 29. Rxb4 {[%clk 0:01:36]}  Rxa5 {[%clk 0:01:00]} 30. Rc4 {[%clk 0:01:22]}  g5 {[%clk 0:00:53]} 31. b4 {[%clk 0:01:19]}  Ra8 {[%clk 0:00:51]} 32. hxg5 {[%clk 0:01:18]}  hxg5 {[%clk 0:00:50]} 33. Kb3 {[%clk 0:01:19]}  Kf6 {[%clk 0:00:37]} 34. b5 {[%clk 0:01:17]}  Ke5 {[%clk 0:00:34]} 35. b6 {[%clk 0:01:06]}  Rb8 {[%clk 0:00:34]} 36. Rb4 {[%clk 0:01:06]}  d5 {[%clk 0:00:27]} 37. Ka4 {[%clk 0:01:00]}  d4 {[%clk 0:00:23]} 38. Kb5 {[%clk 0:00:40]}  d3 {[%clk 0:00:20]} 39. f3 {[%clk 0:00:30]}  d2 {[%clk 0:00:14]} 40. Rb1 {[%clk 0:00:29]}  Kd4 {[%clk 0:00:14]} 41. Kc6 {[%clk 0:00:28]}  f5 {[%clk 0:00:11]} 42. exf5 {[%clk 0:00:25]}  exf5 {[%clk 0:00:11]} 43. Kc7 {[%clk 0:00:25]}  Rf8 {[%clk 0:00:10]} 44. b7 {[%clk 0:00:25]}  Kd3 {[%clk 0:00:08]} 45. b8=Q {[%clk 0:00:07]}  Rxb8 {[%clk 0:00:09]} 46. Rxb8 {[%clk 0:00:07]}  d1=Q {[%clk 0:00:08]} 47. Rd8+ {[%clk 0:00:07]}  Ke2 {[%clk 0:00:08]} 48. Rxd1 {[%clk 0:00:07]}  Kxd1 {[%clk 0:00:09]} 49. Kd6 {[%clk 0:00:08]}  Ke2 {[%clk 0:00:10]} 50. Ke5 {[%clk 0:00:08]}  Kf2 {[%clk 0:00:06]} 51. Kxf5 {[%clk 0:00:03]}  Kxg2 {[%clk 0:00:06]} 52. Kg4 {[%clk 0:00:03]}  Kf2 {[%clk 0:00:06]} 53. Kxg5 {[%clk 0:00:04]}  Kxf3 {[%clk 0:00:06]} 1/2-1/2


[Site "https://www.chess.com"]

[Event "Titled Tuesday Blitz February 15 Early 2022"]
[White "Timofeev, Artyom"]
[Black "Budrewicz, Krzysztof"]
[WhiteFideId "4140419"]
[BlackFideId "1127950"]
[WhiteElo "2583"]
[BlackElo "2248"]
[Result "1-0"]
[Round "10"]
[TimeControl "180+1"]
[Date "2022.02.15"]
[WhiteClock "0:00:16"]
[BlackClock "0:00:02"]

1. d4 {[%clk 0:03:00]}  Nf6 {[%clk 0:02:59]} 2. Nf3 {[%clk 0:03:00]}  g6 {[%clk 0:02:59]} 3. Nbd2 {[%clk 0:03:00]}  d5 {[%clk 0:02:59]} 4. b4 {[%clk 0:03:00]}  Bg7 {[%clk 0:02:58]} 5. e3 {[%clk 0:03:00]}  O-O {[%clk 0:02:56]} 6. Be2 {[%clk 0:03:00]}  a5 {[%clk 0:02:55]} 7. b5 {[%clk 0:03:00]}  a4 {[%clk 0:02:54]} 8. Ba3 {[%clk 0:03:00]}  Nbd7 {[%clk 0:02:50]} 9. c4 {[%clk 0:02:59]}  dxc4 {[%clk 0:02:46]} 10. Nxc4 {[%clk 0:02:56]}  Ne4 {[%clk 0:02:44]} 11. Rc1 {[%clk 0:02:55]}  Nb6 {[%clk 0:02:41]} 12. Nxb6 {[%clk 0:02:41]}  cxb6 {[%clk 0:02:41]} 13. O-O {[%clk 0:02:42]}  Be6 {[%clk 0:02:39]} 14. Bd3 {[%clk 0:02:42]}  Bd5 {[%clk 0:02:28]} 15. Ne5 {[%clk 0:02:33]}  Nd6 {[%clk 0:02:23]} 16. Qe2 {[%clk 0:02:32]}  Rc8 {[%clk 0:02:13]} 17. Rxc8 {[%clk 0:02:26]}  Qxc8 {[%clk 0:02:14]} 18. Rc1 {[%clk 0:02:27]}  Qe6 {[%clk 0:02:12]} 19. Nc4 {[%clk 0:01:53]}  Nxb5 {[%clk 0:02:00]} 20. Bxe7 {[%clk 0:01:22]}  Rc8 {[%clk 0:01:45]} 21. Bb4 {[%clk 0:01:14]}  Bf8 {[%clk 0:01:19]} 22. Bd2 {[%clk 0:01:14]}  Nd6 {[%clk 0:01:08]} 23. Nxb6 {[%clk 0:01:10]}  Rxc1+ {[%clk 0:01:06]} 24. Bxc1 {[%clk 0:01:10]}  Bxa2 {[%clk 0:01:06]} 25. Nxa4 {[%clk 0:01:10]}  Qb3 {[%clk 0:00:38]} 26. Nc5 {[%clk 0:01:07]}  Qc3 {[%clk 0:00:26]} 27. Bb2 {[%clk 0:01:05]}  Qa5 {[%clk 0:00:22]} 28. h4 {[%clk 0:00:56]}  b5 {[%clk 0:00:22]} 29. Nd7 {[%clk 0:00:45]}  Be7 {[%clk 0:00:20]} 30. d5 {[%clk 0:00:41]}  Bc4 {[%clk 0:00:17]} 31. Nf6+ {[%clk 0:00:38]}  Bxf6 {[%clk 0:00:13]} 32. Bxf6 {[%clk 0:00:38]}  Qa4 {[%clk 0:00:11]} 33. Be5 {[%clk 0:00:28]}  Bxd3 {[%clk 0:00:10]} 34. Qxd3 {[%clk 0:00:29]}  Qc4 {[%clk 0:00:10]} 35. Qxc4 {[%clk 0:00:23]}  Nxc4 {[%clk 0:00:11]} 36. Bc3 {[%clk 0:00:23]}  Kf8 {[%clk 0:00:10]} 37. Kf1 {[%clk 0:00:22]}  Ke7 {[%clk 0:00:11]} 38. Ke2 {[%clk 0:00:22]}  Kd6 {[%clk 0:00:10]} 39. e4 {[%clk 0:00:23]}  f5 {[%clk 0:00:09]} 40. f3 {[%clk 0:00:23]}  h5 {[%clk 0:00:05]} 41. Kd3 {[%clk 0:00:23]}  Nb6 {[%clk 0:00:04]} 42. Kd4 {[%clk 0:00:22]}  fxe4 {[%clk 0:00:04]} 43. fxe4 {[%clk 0:00:22]}  Nd7 {[%clk 0:00:02]} 44. Bb4+ {[%clk 0:00:22]}  Kc7 {[%clk 0:00:02]} 45. e5 {[%clk 0:00:22]}  Nb6 {[%clk 0:00:03]} 46. e6 {[%clk 0:00:22]}  Nc4 {[%clk 0:00:03]} 47. Kc5 {[%clk 0:00:19]}  Kd8 {[%clk 0:00:02]} 48. Bc3 {[%clk 0:00:18]}  Ke7 {[%clk 0:00:02]} 49. g3 {[%clk 0:00:16]} 1-0


[Site "https://www.chess.com"]

[Event "Titled Tuesday Blitz February 15 Early 2022"]
[White "Tsyhanchuk, Stanislav"]
[Black "Boraso, Alessio"]
[WhiteFideId "13505130"]
[BlackFideId "848077"]
[WhiteElo "2078"]
[BlackElo "2277"]
[Result "1-0"]
[Round "10"]
[TimeControl "180+1"]
[Date "2022.02.15"]
[WhiteClock "0:00:24"]
[BlackClock "0:00:03"]

1. e4 {[%clk 0:03:00]}  c5 {[%clk 0:02:59]} 2. Nf3 {[%clk 0:03:00]}  Nc6 {[%clk 0:02:58]} 3. Bb5 {[%clk 0:03:00]}  e6 {[%clk 0:02:57]} 4. O-O {[%clk 0:03:00]}  Nge7 {[%clk 0:02:57]} 5. c3 {[%clk 0:02:59]}  a6 {[%clk 0:02:51]} 6. Bxc6 {[%clk 0:02:57]}  Nxc6 {[%clk 0:02:52]} 7. d4 {[%clk 0:02:58]}  cxd4 {[%clk 0:02:53]} 8. cxd4 {[%clk 0:02:58]}  d5 {[%clk 0:02:53]} 9. exd5 {[%clk 0:02:58]}  exd5 {[%clk 0:02:51]} 10. Nc3 {[%clk 0:02:57]}  Be7 {[%clk 0:02:51]} 11. Bf4 {[%clk 0:02:53]}  O-O {[%clk 0:02:50]} 12. h3 {[%clk 0:02:53]}  Bf6 {[%clk 0:02:47]} 13. Ne5 {[%clk 0:02:50]}  Be6 {[%clk 0:02:23]} 14. Re1 {[%clk 0:02:48]}  Rc8 {[%clk 0:02:22]} 15. a3 {[%clk 0:02:45]}  Qb6 {[%clk 0:02:17]} 16. Nxc6 {[%clk 0:02:43]}  Rxc6 {[%clk 0:02:15]} 17. Be5 {[%clk 0:02:37]}  Bxe5 {[%clk 0:02:09]} 18. dxe5 {[%clk 0:02:33]}  d4 {[%clk 0:02:04]} 19. Ne4 {[%clk 0:01:59]}  Qxb2 {[%clk 0:02:03]} 20. Rb1 {[%clk 0:01:58]}  Qxa3 {[%clk 0:02:03]} 21. Rxb7 {[%clk 0:01:54]}  d3 {[%clk 0:01:58]} 22. Ng5 {[%clk 0:01:51]}  Qc3 {[%clk 0:01:39]} 23. Kh2 {[%clk 0:01:12]}  h6 {[%clk 0:00:34]} 24. Nxe6 {[%clk 0:01:03]}  Rxe6 {[%clk 0:00:34]} 25. Re3 {[%clk 0:00:52]}  Rd8 {[%clk 0:00:28]} 26. Rb3 {[%clk 0:00:47]}  Qc7 {[%clk 0:00:28]} 27. f4 {[%clk 0:00:32]}  d2 {[%clk 0:00:26]} 28. Re2 {[%clk 0:00:30]}  Qc4 {[%clk 0:00:25]} 29. Rf3 {[%clk 0:00:27]}  Qd4 {[%clk 0:00:21]} 30. Rff2 {[%clk 0:00:26]}  Qb4 {[%clk 0:00:06]} 31. Rxd2 {[%clk 0:00:23]}  Rxd2 {[%clk 0:00:06]} 32. Qxd2 {[%clk 0:00:23]}  Qxd2 {[%clk 0:00:06]} 33. Rxd2 {[%clk 0:00:24]}  g5 {[%clk 0:00:05]} 34. fxg5 {[%clk 0:00:24]}  hxg5 {[%clk 0:00:06]} 35. Rd5 {[%clk 0:00:24]}  Kg7 {[%clk 0:00:04]} 36. Kg3 {[%clk 0:00:24]}  Kg6 {[%clk 0:00:04]} 37. Kg4 {[%clk 0:00:24]}  f5+ {[%clk 0:00:03]} 38. exf6 {[%clk 0:00:24]}  Kxf6 {[%clk 0:00:03]} 39. Rf5+ {[%clk 0:00:24]} 1-0


[Site "https://www.chess.com"]

[Event "Titled Tuesday Blitz February 15 Early 2022"]
[White "Van den Dikkenberg, Erik"]
[Black "Chincholimath, Halsagar"]
[WhiteFideId "1005880"]
[BlackFideId "5022487"]
[WhiteElo "2118"]
[BlackElo "1737"]
[Result "0-1"]
[Round "10"]
[TimeControl "180+1"]
[Date "2022.02.15"]
[WhiteClock "0:00:01"]
[BlackClock "0:00:18"]

1. e4 {[%clk 0:01:49]}  c6 {[%clk 0:02:58]} 2. d4 {[%clk 0:01:49]}  d5 {[%clk 0:02:57]} 3. exd5 {[%clk 0:01:49]}  cxd5 {[%clk 0:02:57]} 4. Bd3 {[%clk 0:01:50]}  Nc6 {[%clk 0:02:54]} 5. c3 {[%clk 0:01:50]}  Qc7 {[%clk 0:02:54]} 6. f4 {[%clk 0:01:50]}  g6 {[%clk 0:02:48]} 7. Nf3 {[%clk 0:01:50]}  Nh6 {[%clk 0:02:47]} 8. O-O {[%clk 0:01:50]}  Bg7 {[%clk 0:02:45]} 9. Qe1 {[%clk 0:01:50]}  Bf5 {[%clk 0:02:40]} 10. Bxf5 {[%clk 0:01:50]}  Nxf5 {[%clk 0:02:41]} 11. Ne5 {[%clk 0:01:50]}  O-O {[%clk 0:02:38]} 12. Nd2 {[%clk 0:01:49]}  Ncxd4 {[%clk 0:02:31]} 13. cxd4 {[%clk 0:01:46]}  Nxd4 {[%clk 0:02:31]} 14. Rb1 {[%clk 0:01:23]}  Qc2 {[%clk 0:02:22]} 15. Ra1 {[%clk 0:01:23]}  Qf5 {[%clk 0:02:17]} 16. g4 {[%clk 0:00:54]}  Qc8 {[%clk 0:02:10]} 17. Qf2 {[%clk 0:00:47]}  Nc2 {[%clk 0:01:54]} 18. Rb1 {[%clk 0:00:47]}  d4 {[%clk 0:01:54]} 19. Nb3 {[%clk 0:00:34]}  d3 {[%clk 0:01:45]} 20. Nxd3 {[%clk 0:00:31]}  Qxg4+ {[%clk 0:01:39]} 21. Kh1 {[%clk 0:00:30]}  Rac8 {[%clk 0:01:19]} 22. Qg2 {[%clk 0:00:20]}  Qf5 {[%clk 0:01:19]} 23. Ne5 {[%clk 0:00:16]}  Nb4 {[%clk 0:01:13]} 24. Be3 {[%clk 0:00:12]}  Rc2 {[%clk 0:01:05]} 25. Qf3 {[%clk 0:00:12]}  Nxa2 {[%clk 0:00:49]} 26. Nd4 {[%clk 0:00:12]}  Qc8 {[%clk 0:00:46]} 27. Nxc2 {[%clk 0:00:12]}  Qxc2 {[%clk 0:00:45]} 28. b4 {[%clk 0:00:11]}  Nc3 {[%clk 0:00:44]} 29. Rbc1 {[%clk 0:00:11]}  Qb3 {[%clk 0:00:42]} 30. Qxb7 {[%clk 0:00:10]}  Ne2 {[%clk 0:00:40]} 31. Qf3 {[%clk 0:00:08]}  Nxc1 {[%clk 0:00:39]} 32. Bxc1 {[%clk 0:00:08]}  Qxb4 {[%clk 0:00:39]} 33. Be3 {[%clk 0:00:08]}  a5 {[%clk 0:00:38]} 34. Nd7 {[%clk 0:00:07]}  Rd8 {[%clk 0:00:37]} 35. Nc5 {[%clk 0:00:07]}  a4 {[%clk 0:00:36]} 36. Ne4 {[%clk 0:00:06]}  a3 {[%clk 0:00:35]} 37. Bc5 {[%clk 0:00:05]}  Qb5 {[%clk 0:00:29]} 38. Bxa3 {[%clk 0:00:05]}  Rd4 {[%clk 0:00:25]} 39. Bxe7 {[%clk 0:00:03]}  Rxe4 {[%clk 0:00:25]} 40. Bg5 {[%clk 0:00:01]}  Re8 {[%clk 0:00:23]} 41. Rd1 {[%clk 0:00:01]}  h6 {[%clk 0:00:22]} 42. Bh4 {[%clk 0:00:01]}  Qa4 {[%clk 0:00:21]} 43. Bf2 {[%clk 0:00:02]}  Qc4 {[%clk 0:00:20]} 44. Kg2 {[%clk 0:00:02]}  Qe6 {[%clk 0:00:20]} 45. Qd3 {[%clk 0:00:02]}  Qg4+ {[%clk 0:00:19]} 46. Kf1 {[%clk 0:00:01]}  h5 {[%clk 0:00:18]} 0-1


[Site "https://www.chess.com"]

[Event "Titled Tuesday Blitz February 15 Early 2022"]
[White "Vidit, Santosh Gujrathi"]
[Black "Gurevich, Dmitry"]
[WhiteFideId "5029465"]
[BlackFideId "2000407"]
[WhiteElo "2654"]
[BlackElo "2506"]
[Result "1-0"]
[Round "10"]
[TimeControl "180+1"]
[Date "2022.02.15"]
[WhiteClock "0:00:05"]
[BlackClock "0:00:01"]

1. b3 {[%clk 0:03:00]}  d5 {[%clk 0:02:59]} 2. Bb2 {[%clk 0:03:01]}  c5 {[%clk 0:02:59]} 3. e3 {[%clk 0:03:01]}  Nc6 {[%clk 0:02:58]} 4. Bb5 {[%clk 0:03:01]}  Bd7 {[%clk 0:02:58]} 5. Nf3 {[%clk 0:03:01]}  a6 {[%clk 0:02:58]} 6. Bxc6 {[%clk 0:03:01]}  Bxc6 {[%clk 0:02:58]} 7. O-O {[%clk 0:03:01]}  Rc8 {[%clk 0:02:58]} 8. d3 {[%clk 0:03:01]}  e6 {[%clk 0:02:56]} 9. Nbd2 {[%clk 0:03:00]}  Nf6 {[%clk 0:02:54]} 10. Ne5 {[%clk 0:03:00]}  Be7 {[%clk 0:02:53]} 11. f4 {[%clk 0:03:00]}  O-O {[%clk 0:02:53]} 12. Rf3 {[%clk 0:02:58]}  d4 {[%clk 0:02:33]} 13. Nxc6 {[%clk 0:02:57]}  Rxc6 {[%clk 0:02:31]} 14. Nc4 {[%clk 0:02:49]}  b5 {[%clk 0:02:17]} 15. Ne5 {[%clk 0:02:49]}  Rc8 {[%clk 0:02:16]} 16. e4 {[%clk 0:02:38]}  Ne8 {[%clk 0:01:54]} 17. Rh3 {[%clk 0:02:37]}  f6 {[%clk 0:01:50]} 18. Qh5 {[%clk 0:02:17]}  fxe5 {[%clk 0:01:17]} 19. Qxh7+ {[%clk 0:02:17]}  Kf7 {[%clk 0:01:17]} 20. fxe5 {[%clk 0:02:17]}  Bg5 {[%clk 0:01:08]} 21. Qh5+ {[%clk 0:02:17]}  Kg8 {[%clk 0:01:04]} 22. Qh8+ {[%clk 0:02:15]}  Kf7 {[%clk 0:01:04]} 23. Rf1+ {[%clk 0:02:15]}  Bf6 {[%clk 0:00:48]} 24. Qh5+ {[%clk 0:02:13]}  Ke7 {[%clk 0:00:45]} 25. exf6+ {[%clk 0:02:12]}  gxf6 {[%clk 0:00:42]} 26. Bc1 {[%clk 0:02:07]}  e5 {[%clk 0:00:40]} 27. Qf5 {[%clk 0:02:00]}  Kd6 {[%clk 0:00:37]} 28. Rh7 {[%clk 0:01:56]}  Rc7 {[%clk 0:00:34]} 29. h4 {[%clk 0:01:17]}  Rxh7 {[%clk 0:00:33]} 30. Qxh7 {[%clk 0:01:17]}  Qd7 {[%clk 0:00:32]} 31. Qh6 {[%clk 0:01:04]}  Qf7 {[%clk 0:00:32]} 32. Bg5 {[%clk 0:00:29]}  Ke7 {[%clk 0:00:28]} 33. Bd2 {[%clk 0:00:24]}  Rg8 {[%clk 0:00:28]} 34. Be1 {[%clk 0:00:21]}  Qg7 {[%clk 0:00:22]} 35. Qxg7+ {[%clk 0:00:20]}  Nxg7 {[%clk 0:00:21]} 36. Kh2 {[%clk 0:00:21]}  Ne6 {[%clk 0:00:21]} 37. g3 {[%clk 0:00:21]}  c4 {[%clk 0:00:18]} 38. Bb4+ {[%clk 0:00:20]}  Kf7 {[%clk 0:00:17]} 39. bxc4 {[%clk 0:00:20]}  bxc4 {[%clk 0:00:17]} 40. Bd6 {[%clk 0:00:21]}  Kg6 {[%clk 0:00:14]} 41. h5+ {[%clk 0:00:20]}  Kxh5 {[%clk 0:00:10]} 42. Rxf6 {[%clk 0:00:20]}  Ng5 {[%clk 0:00:10]} 43. Bxe5 {[%clk 0:00:19]}  cxd3 {[%clk 0:00:09]} 44. cxd3 {[%clk 0:00:19]}  Rc8 {[%clk 0:00:09]} 45. Bxd4 {[%clk 0:00:15]}  Rc2+ {[%clk 0:00:09]} 46. Bf2 {[%clk 0:00:15]}  Rd2 {[%clk 0:00:06]} 47. Kg2 {[%clk 0:00:08]}  Rxd3 {[%clk 0:00:05]} 48. e5 {[%clk 0:00:09]}  Ne4 {[%clk 0:00:02]} 49. Rf4 {[%clk 0:00:07]}  Nxf2 {[%clk 0:00:02]} 50. Kxf2 {[%clk 0:00:07]}  Rd2+ {[%clk 0:00:02]} 51. Ke3 {[%clk 0:00:07]}  Rxa2 {[%clk 0:00:02]} 52. e6 {[%clk 0:00:07]}  Ra1 {[%clk 0:00:03]} 53. Kd4 {[%clk 0:00:06]}  Re1 {[%clk 0:00:02]} 54. Kd5 {[%clk 0:00:05]}  Kg6 {[%clk 0:00:01]} 55. Kd6 {[%clk 0:00:05]} 1-0


[Site "https://www.chess.com"]

[Event "Titled Tuesday Blitz February 15 Early 2022"]
[White "Vine, Elzbieta"]
[Black "Von Buelow, Georg"]
[WhiteFideId "1119320"]
[BlackFideId "4620658"]
[WhiteElo "1832"]
[BlackElo "2211"]
[Result "0-1"]
[Round "10"]
[TimeControl "180+1"]
[Date "2022.02.15"]
[WhiteClock "0:00:08"]
[BlackClock "0:01:03"]

1. e4 {[%clk 0:03:00]}  e5 {[%clk 0:02:52]} 2. Nf3 {[%clk 0:02:58]}  Nc6 {[%clk 0:02:51]} 3. Bb5 {[%clk 0:02:56]}  a6 {[%clk 0:02:51]} 4. Ba4 {[%clk 0:02:55]}  Nf6 {[%clk 0:02:50]} 5. O-O {[%clk 0:02:54]}  Be7 {[%clk 0:02:50]} 6. c3 {[%clk 0:02:43]}  Nxe4 {[%clk 0:02:32]} 7. Re1 {[%clk 0:02:36]}  Nc5 {[%clk 0:02:30]} 8. Bxc6 {[%clk 0:02:24]}  dxc6 {[%clk 0:02:30]} 9. Nxe5 {[%clk 0:02:00]}  O-O {[%clk 0:02:29]} 10. d4 {[%clk 0:01:59]}  Nd7 {[%clk 0:02:10]} 11. Nd2 {[%clk 0:01:54]}  Nxe5 {[%clk 0:02:10]} 12. Rxe5 {[%clk 0:01:54]}  Bd6 {[%clk 0:02:08]} 13. Re1 {[%clk 0:01:30]}  Qh4 {[%clk 0:02:08]} 14. Nf3 {[%clk 0:01:29]}  Qh5 {[%clk 0:01:58]} 15. Ne5 {[%clk 0:01:09]}  Qxd1 {[%clk 0:01:48]} 16. Rxd1 {[%clk 0:01:09]}  f6 {[%clk 0:01:49]} 17. Nf3 {[%clk 0:01:04]}  Bg4 {[%clk 0:01:47]} 18. Rd3 {[%clk 0:00:59]}  Rfe8 {[%clk 0:01:46]} 19. Bd2 {[%clk 0:00:38]}  g5 {[%clk 0:01:37]} 20. Kf1 {[%clk 0:00:30]}  Kf7 {[%clk 0:01:16]} 21. h3 {[%clk 0:00:28]}  Be6 {[%clk 0:01:07]} 22. b3 {[%clk 0:00:20]}  b5 {[%clk 0:01:07]} 23. Re3 {[%clk 0:00:08]}  Bd5 {[%clk 0:01:03]} 0-1


[Site "https://www.chess.com"]

[Event "Titled Tuesday Blitz February 15 Early 2022"]
[White "Vitiugov, Nikita"]
[Black "Visakh N R"]
[WhiteFideId "4152956"]
[BlackFideId "25012223"]
[WhiteElo "2673"]
[BlackElo "2454"]
[Result "0-1"]
[Round "10"]
[TimeControl "180+1"]
[Date "2022.02.15"]
[WhiteClock "0:00:04"]
[BlackClock "0:00:11"]

1. c4 {[%clk 0:02:33]}  e6 {[%clk 0:02:58]} 2. Nc3 {[%clk 0:02:34]}  d5 {[%clk 0:02:57]} 3. cxd5 {[%clk 0:02:35]}  exd5 {[%clk 0:02:57]} 4. d4 {[%clk 0:02:35]}  c6 {[%clk 0:02:56]} 5. Nf3 {[%clk 0:02:34]}  Bd6 {[%clk 0:02:54]} 6. Bg5 {[%clk 0:02:34]}  Ne7 {[%clk 0:02:53]} 7. e3 {[%clk 0:02:34]}  O-O {[%clk 0:02:52]} 8. Bd3 {[%clk 0:02:34]}  f6 {[%clk 0:02:46]} 9. Bh4 {[%clk 0:02:34]}  Bf5 {[%clk 0:02:44]} 10. Bg3 {[%clk 0:02:31]}  Na6 {[%clk 0:02:41]} 11. a3 {[%clk 0:02:27]}  Nc7 {[%clk 0:02:40]} 12. Qc2 {[%clk 0:02:22]}  Bxd3 {[%clk 0:02:37]} 13. Qxd3 {[%clk 0:02:23]}  Qd7 {[%clk 0:02:38]} 14. Bxd6 {[%clk 0:02:21]}  Qxd6 {[%clk 0:02:38]} 15. h4 {[%clk 0:02:22]}  Qe6 {[%clk 0:02:34]} 16. h5 {[%clk 0:02:21]}  Nf5 {[%clk 0:02:33]} 17. O-O-O {[%clk 0:02:17]}  Nd6 {[%clk 0:02:33]} 18. Nh4 {[%clk 0:02:14]}  b5 {[%clk 0:02:25]} 19. Rh3 {[%clk 0:02:12]}  a5 {[%clk 0:02:24]} 20. Ne2 {[%clk 0:02:10]}  b4 {[%clk 0:02:20]} 21. Nf4 {[%clk 0:02:07]}  Qe4 {[%clk 0:02:16]} 22. a4 {[%clk 0:02:02]}  b3 {[%clk 0:02:08]} 23. Qxb3 {[%clk 0:01:56]}  Rab8 {[%clk 0:02:04]} 24. Qc2 {[%clk 0:01:56]}  Rb4 {[%clk 0:02:01]} 25. Qxe4 {[%clk 0:01:53]}  Nxe4 {[%clk 0:02:00]} 26. Nd3 {[%clk 0:01:36]}  Rc4+ {[%clk 0:01:57]} 27. Kb1 {[%clk 0:01:35]}  Rb8 {[%clk 0:01:57]} 28. Rhh1 {[%clk 0:01:18]}  Na6 {[%clk 0:01:26]} 29. Nf5 {[%clk 0:01:09]}  Nb4 {[%clk 0:01:24]} 30. b3 {[%clk 0:00:50]}  Nxd3 {[%clk 0:00:50]} 31. Rxd3 {[%clk 0:00:50]}  Nxf2 {[%clk 0:00:50]} 32. Ka2 {[%clk 0:00:35]}  Rc2+ {[%clk 0:00:34]} 33. Kb1 {[%clk 0:00:34]}  Rc4 {[%clk 0:00:19]} 34. Ka2 {[%clk 0:00:34]}  Rcb4 {[%clk 0:00:18]} 35. Ne7+ {[%clk 0:00:16]}  Kf7 {[%clk 0:00:17]} 36. Nxc6 {[%clk 0:00:16]}  Nxd3 {[%clk 0:00:17]} 37. Nxb8 {[%clk 0:00:16]}  Rxb8 {[%clk 0:00:17]} 38. Rd1 {[%clk 0:00:16]}  Nb4+ {[%clk 0:00:16]} 39. Kb2 {[%clk 0:00:17]}  Rc8 {[%clk 0:00:16]} 40. Rd2 {[%clk 0:00:17]}  Ke6 {[%clk 0:00:16]} 41. g4 {[%clk 0:00:18]}  g6 {[%clk 0:00:16]} 42. hxg6 {[%clk 0:00:17]}  hxg6 {[%clk 0:00:17]} 43. Rh2 {[%clk 0:00:18]}  f5 {[%clk 0:00:16]} 44. g5 {[%clk 0:00:18]}  Nd3+ {[%clk 0:00:17]} 45. Ka2 {[%clk 0:00:16]}  f4 {[%clk 0:00:16]} 46. exf4 {[%clk 0:00:16]}  Kf5 {[%clk 0:00:16]} 47. Rh7 {[%clk 0:00:16]}  Rc2+ {[%clk 0:00:13]} 48. Kb1 {[%clk 0:00:15]}  Rb2+ {[%clk 0:00:13]} 49. Ka1 {[%clk 0:00:16]}  Rxb3 {[%clk 0:00:13]} 50. Ka2 {[%clk 0:00:12]}  Nc1+ {[%clk 0:00:13]} 51. Ka1 {[%clk 0:00:12]}  Kxf4 {[%clk 0:00:13]} 52. Rf7+ {[%clk 0:00:10]}  Kxg5 {[%clk 0:00:12]} 53. Rf5+ {[%clk 0:00:10]}  Kg4 {[%clk 0:00:13]} 54. Rf4+ {[%clk 0:00:08]}  Kg3 {[%clk 0:00:13]} 55. Rg4+ {[%clk 0:00:08]}  Kf3 {[%clk 0:00:13]} 56. Rg3+ {[%clk 0:00:07]}  Ke4 {[%clk 0:00:13]} 57. Rg4+ {[%clk 0:00:06]}  Kd3 {[%clk 0:00:13]} 58. Rg3+ {[%clk 0:00:06]}  Kc4 {[%clk 0:00:13]} 59. Rg1 {[%clk 0:00:05]}  Nd3 {[%clk 0:00:13]} 60. Rxg6 {[%clk 0:00:05]}  Rb4 {[%clk 0:00:12]} 61. Rc6+ {[%clk 0:00:04]}  Kxd4 {[%clk 0:00:12]} 62. Ka2 {[%clk 0:00:04]}  Nc5 {[%clk 0:00:11]} 63. Rb6 {[%clk 0:00:04]}  Rxa4+ {[%clk 0:00:11]} 64. Kb1 {[%clk 0:00:04]}  Rb4+ {[%clk 0:00:11]} 0-1


[Site "https://www.chess.com"]

[Event "Titled Tuesday Blitz February 15 Early 2022"]
[White "Voege, Tobias"]
[Black "Bugayev, Vladimir"]
[WhiteFideId "1270513"]
[BlackFideId "30901480"]
[WhiteElo "2335"]
[BlackElo "2413"]
[Result "1-0"]
[Round "10"]
[TimeControl "180+1"]
[Date "2022.02.15"]
[WhiteClock "0:01:58"]
[BlackClock "0:01:37"]

1. d4 {[%clk 0:03:00]}  Nf6 {[%clk 0:02:59]} 2. c4 {[%clk 0:03:00]}  c5 {[%clk 0:02:59]} 3. d5 {[%clk 0:03:00]}  b5 {[%clk 0:03:00]} 4. cxb5 {[%clk 0:03:01]}  a6 {[%clk 0:03:01]} 5. Nc3 {[%clk 0:03:02]}  e6 {[%clk 0:02:58]} 6. e4 {[%clk 0:02:59]}  exd5 {[%clk 0:02:51]} 7. e5 {[%clk 0:02:59]}  d4 {[%clk 0:02:42]} 8. exf6 {[%clk 0:02:58]}  dxc3 {[%clk 0:02:42]} 9. Qe2+ {[%clk 0:02:58]}  Be7 {[%clk 0:02:41]} 10. Qxe7+ {[%clk 0:02:52]}  Qxe7+ {[%clk 0:02:42]} 11. fxe7 {[%clk 0:02:52]}  axb5 {[%clk 0:02:33]} 12. Bxb5 {[%clk 0:02:46]}  Kxe7 {[%clk 0:02:22]} 13. bxc3 {[%clk 0:02:46]}  d5 {[%clk 0:02:23]} 14. Nf3 {[%clk 0:02:43]}  Be6 {[%clk 0:02:24]} 15. O-O {[%clk 0:02:42]}  Na6 {[%clk 0:02:24]} 16. Re1 {[%clk 0:02:40]}  Nc7 {[%clk 0:02:24]} 17. Bd3 {[%clk 0:02:36]}  h6 {[%clk 0:02:20]} 18. a4 {[%clk 0:02:31]}  Ra5 {[%clk 0:02:07]} 19. Bf4 {[%clk 0:02:21]}  Rc8 {[%clk 0:02:07]} 20. Bxc7 {[%clk 0:02:16]}  Rxc7 {[%clk 0:02:06]} 21. Bb5 {[%clk 0:02:16]}  f6 {[%clk 0:01:57]} 22. Rad1 {[%clk 0:02:11]}  Kd6 {[%clk 0:01:57]} 23. Nd2 {[%clk 0:02:10]}  c4 {[%clk 0:01:38]} 24. Nxc4+ {[%clk 0:02:06]}  Rxc4 {[%clk 0:01:38]} 25. Bxc4 {[%clk 0:02:07]}  Kc5 {[%clk 0:01:38]} 26. Rxe6 {[%clk 0:02:02]}  Kxc4 {[%clk 0:01:38]} 27. Rc6+ {[%clk 0:02:00]}  Kb3 {[%clk 0:01:37]} 28. Rd4 {[%clk 0:01:58]} 1-0


[Site "https://www.chess.com"]